[Event "FIDE WTC-KO 202"]
[Site "Jerusalem"]
[Date "2022.11.23"]
[Round "2.1"]
[White "Bartel, Mateusz"]
[Black "Bai, Jinshi"]
[Result "1/2-1/2"]
[ECO "B30"]
[WhiteElo "2533"]
[BlackElo "2498"]
[Annotator "TA"]
[PlyCount "179"]
[EventDate "2022.11.20"]
[EventType "team-tourn"]
[EventCountry "ISR"]
[SourceTitle "playchess.com"]
[Source "ChessBase"]
[SourceQuality "1"]
[TimeControl "2700+10"]

{[%evp 12,178,15,15,14,14,16,5,12,16,19,10,17,12,12,14,21,0,5,0,0,0,0,0,0,0,0,0,0,0,0,-15,-13,-13,-11,-10,0,0,8,0,0,0,0,0,0,0,0,0,0,0,6,5,5,5,5,10,12,13,13,5,10,5,10,10,23,23,23,23,23,23,21,8,114,110,101,90,138,53,49,29,14,18,126,133,113,115,133,37,33,39,94,25,25,25,25,25,25,25,25,25,25,25,33,33,31,25,25,25,25,25,25,25,25,25,42,46,66,70,143,0,0,0,0,0,56,0,0,0,0,0,0,0,0,0,0,0,0,0,0,0,0,0,0,0,0,0,0,0,21,0,0,0,0,0,21,0,0,0,0,0,0,0,0,0,0,0,0,0,0]} 1. e4 {[%emt 0:45:20]} c5 {[%emt 0:00:02]} 2. Nf3 {[%emt 0:00:00]} e6 {[%emt 0:00:03]} 3. Nc3 {[%emt 0:00:00]} Nc6 {[%emt 0:00:03]} 4. Bb5 {[%emt 0:00:00]} Nge7 {[%emt 0:00:04]} 5. O-O {[%emt 0:00:00]} a6 {[%emt 0:00:04]} 6. Be2 {[%emt 0:00:00]} d5 {[%emt 0:00:50]} 7. exd5 {[%emt 0:00:00]} Nxd5 {[%emt 0:00:04]} 8. Nxd5 {[%emt 0:00:00]} Qxd5 {[%emt 0:01:29]} 9. b3 {[%emt 0:00:00]} Be7 {[%emt 0:00:44]} 10. Bb2 {[%emt 0:00:00]} O-O {[%emt 0:00:03]} 11. Re1 {[%emt 0:00:00]} b6 {[%emt 0:09:43]} 12. Bd3 {[%emt 0:00:00]} Bb7 {[%emt 0:00:47]} 13. Be4 {[%emt 0:00:00]} (13. Ne5 {simplifies} Nxe5 14. Be4 Qd7 15. Bxe5 Bxe4 16. Rxe4 Bg5 17. d3) 13... Qd7 {[%emt 0:00:38]} 14. Qe2 {[%emt 0:00:00]} (14. Ne5 {simplifies} Nxe5 15. Bxe5 Bxe4 16. Rxe4 Bg5 17. Bc3) 14... Rad8 {[%emt 0:02:52]} 15. Qe3 {[%emt 0:00:00]} (15. Ne5 {simplifies} Nxe5 16. Bxb7 Qxb7 17. Bxe5 Rd5 18. Rad1) 15... Nb4 {[%emt 0:04:55]} 16. Ne5 {[%emt 0:00:00]} ({But not} 16. Qc3 Bf6 17. d4 a5 18. Bxb7 Qxb7 $17) 16... Qc7 {[%emt 0:00:18]} 17. a3 {[%emt 0:00:00]} Bxe4 {[%emt 0:00:39]} 18. Qxe4 {[%emt 0:00:00]} Nd5 {[%emt 0:00:02]} 19. c4 {[%emt 0:00:00]} Nf6 {[%emt 0:00:04]} 20. Qc6 {[%emt 0:00:00]} Bd6 {[%emt 0:01:38]} 21. Qf3 {[%emt 0:00:00]} Nd7 {[%emt 0:01:05]} 22. Nxd7 $1 {[%emt 0:00:00]} Rxd7 {[%emt 0:00:56]} ({Much less strong is} 22... Bxh2+ 23. Kh1 Rxd7 24. g3 $16) 23. h4 {[%emt 0:00:00]} e5 {[%emt 0:02:51]} 24. h5 {[%emt 0:00:00]} h6 {[%emt 0:00:05]} 25. Qf5 {[%emt 0:00:00]} f6 {[%emt 0:00:40]} 26. Re3 {[%emt 0:00:00]} Rfd8 {[%emt 0:00:29]} 27. Bc3 {[%emt 0:00:00]} b5 {[%emt 0:01:18]} 28. a4 {[%emt 0:00:00]} b4 {[%emt 0:00:45]} 29. Bb2 {[%emt 0:00:00]} Bf8 {[%emt 0:00:04]} 30. d3 {[%emt 0:00:00]} Rd6 {[%emt 0:00:30]} 31. Kf1 {[%emt 0:00:00]} Qd7 {[%emt 0:00:21]} (31... a5 {is interesting.} 32. Rd1 R6d7 33. Rg3 Rf7) 32. Qxd7 {[%emt 0:00:00]} R6xd7 {[%emt 0:00:30]} 33. Rd1 {[%emt 0:00:00]} Kf7 {[%emt 0:03:26]} 34. Ke2 {[%emt 0:00:00]} Bd6 {[%emt 0:00:01]} 35. g4 {[%emt 0:00:00]} Bc7 {[%emt 0:00:21]} 36. Re4 {[%emt 0:00:00]} Rd6 {[%emt 0:00:28]} 37. Bc1 {[%emt 0:00:00]} R6d7 {[%emt 0:00:39]} 38. Be3 {[%emt 0:00:00]} Bd6 $1 {[%emt 0:00:02]} 39. f3 {[%emt 0:00:00]} Kf8 {[%emt 0:00:32]} 40. Bf2 {[%emt 0:00:00]} Kf7 {[%emt 0:00:04]} 41. f4 {[%emt 0:00:00]} Re8 {[%emt 0:05:13]} (41... exf4 $11 42. d4 Bb8) 42. fxe5 $16 {[%emt 0:00:00]} fxe5 {[%emt 0:00:01]} 43. Be3 {[%emt 0:00:00]} Ke6 {[%emt 0:00:13]} (43... Re6 $142) 44. g5 {[%emt 0:00:00]} (44. d4 $16) 44... hxg5 $14 {[%emt 0:00:06]} 45. Rg1 {[%emt 0:00:00]} Be7 {[%emt 0:00:29]} 46. Bxg5 {[%emt 0:00:00]} Bxg5 {[%emt 0:00:56]} (46... Bf6 $11) 47. Rxg5 $16 {[%emt 0:00:00]} Kf6 {[%emt 0:00:13]} 48. Rg6+ {[%emt 0:00:00]} Kf5 {[%emt 0:00:02] [#]} 49. Reg4 {[%emt 0:00:00]} (49. Rxa6 Red8 $14) (49. Rc6 $1 $16 {[%cal Rc6c5]}) 49... e4 $1 $14 {[%emt 0:03:30]} 50. R6g5+ {[%emt 0:01:11]} Kf6 {[%emt 0:00:00]} 51. dxe4 {[%emt 0:00:01]} (51. Rxc5 $16 {Threatens to win with Rf4+.} exd3+ 52. Kd1) 51... Rxe4+ $11 {[%emt 0:00:35]} 52. Rxe4 {[%emt 0:00:04]} Kxg5 {[%emt 0:00:01]} 53. Re5+ {[%emt 0:00:02]} Kf4 {[%emt 0:00:34]} 54. Rxc5 {[%emt 0:00:03]} Ke4 $1 {[%emt 0:00:05]} 55. Rg5 {[%emt 0:00:16]} Kd4 {[%emt 0:00:11]} 56. Rg3 {[%emt 0:00:33]} Rf7 {[%emt 0:00:21]} 57. Rd3+ {[%emt 0:00:06]} Ke4 $1 {[%emt 0:00:04]} 58. Re3+ {[%emt 0:01:24]} Kd4 {[%emt 0:00:01]} 59. Rf3 {[%emt 0:00:01]} Re7+ $1 {[%emt 0:00:23]} 60. Kd2 {[%emt 0:00:02]} Re5 {[%emt 0:00:19]} 61. Rd3+ {[%emt 0:01:01]} Kc5 {[%emt 0:00:01]} 62. Rh3 {[%emt 0:00:02]} Rg5 {[%emt 0:00:51]} 63. Ke3 {[%emt 0:00:27]} Rg4 {[%emt 0:00:29]} 64. Kf3 {[%emt 0:04:38]} Rd4 {[%emt 0:00:19]} ({Black should play} 64... Rg1 $14) 65. Ke2 {[%emt 0:00:02]} ({White should try} 65. Rg3 $16) 65... Re4+ $11 {[%emt 0:00:18]} 66. Kd3 {[%emt 0:00:09]} Rd4+ {[%emt 0:00:10]} 67. Ke3 {[%emt 0:00:13]} (67. Kc2 $11) 67... Rg4 $1 $14 {[%emt 0:00:00]} 68. a5 {[%emt 0:00:17]} (68. Kf2 $14) 68... Kd6 {[%emt 0:00:07]} 69. Kf3 {[%emt 0:00:15]} (69. h6 gxh6 70. Rxh6+ Kc5 $14) 69... Rg5 {[%emt 0:00:06]} 70. h6 {[%emt 0:00:01]} gxh6 $1 {[%emt 0:00:15]} 71. Rxh6+ {[%emt 0:00:01]} Kc5 {[%emt 0:00:38]} 72. Kf4 {[%emt 0:00:01]} Rg1 {[%emt 0:00:14]} 73. Rxa6 {[%emt 0:00:29]} Rb1 {[%emt 0:00:02]} 74. Ra8 {[%emt 0:00:02]} Rxb3 {[%emt 0:00:06]} 75. Rc8+ {[%emt 0:00:01]} Kd6 {[%emt 0:00:10]} 76. Ke4 {[%emt 0:00:31]} Ra3 {[%emt 0:00:03]} 77. c5+ {[%emt 0:00:16]} Kd7 {[%emt 0:00:05]} 78. Rb8 {[%emt 0:00:02]} Rxa5 {[%emt 0:00:03]} 79. Kd5 {[%emt 0:00:01]} Ra6 {[%emt 0:00:28]} 80. Rb7+ {[%emt 0:00:03]} Kc8 {[%emt 0:00:02]} 81. Rxb4 {[%emt 0:00:03]} Rh6 {[%emt 0:00:03]} 82. Re4 {[%emt 0:00:04]} Rg6 {[%emt 0:00:17]} 83. Re6 {[%emt 0:00:07]} Rxe6 {[%emt 0:00:15]} 84. Kxe6 {[%emt 0:00:01]} Kc7 {[%emt 0:00:00]} 85. Kd5 {[%emt 0:00:02]} Kd7 {[%emt 0:00:01]} 86. c6+ {[%emt 0:00:01]} Kc7 $1 {[%emt 0:00:01]} 87. Kc5 {[%emt 0:00:01]} Kc8 {[%emt 0:00:04]} 88. Kd6 {[%emt 0:00:01]} Kd8 {[%emt 0:00:01]} 89. c7+ {[%emt 0:00:01]} Kc8 {[%emt 0:00:01]} 90. Kc6 {[%emt 0:00:01]} 1/2-1/2

[Event "FIDE WTC-KO 202"]
[Site "Jerusalem"]
[Date "2022.11.23"]
[Round "2.1"]
[White "Santos Ruiz, Miguel"]
[Black "Mamedov, Rauf"]
[Result "1-0"]
[ECO "B57"]
[WhiteElo "2480"]
[BlackElo "2567"]
[Annotator "TA"]
[PlyCount "111"]
[EventDate "2022.11.20"]
[EventType "team-tourn"]
[EventCountry "ISR"]
[SourceTitle "playchess.com"]
[Source "ChessBase"]
[SourceQuality "1"]
[TimeControl "2700+10"]

{[%evp 15,111,13,22,16,22,21,20,16,13,19,18,17,18,32,23,17,45,35,100,102,91,102,95,92,133,131,185,188,207,199,249,248,233,179,206,221,208,197,170,158,150,147,262,260,267,259,280,284,277,254,206,70,70,70,70,70,70,30,72,30,75,75,75,0,51,0,85,0,147,77,172,164,173,144,382,368,356,314,322,162,940,443,425,422,404,156,445,427,29975,29976,29971,29973,29985,29986,29986,29987,29984,29977]} 1. e4 {[%emt 0:00:01]} c5 {[%emt 0:00:06]} 2. Nf3 {[%emt 0:00:03]} d6 {[%emt 0:00:02]} 3. d4 {[%emt 0:00:01]} cxd4 {[%emt 0:00:01]} 4. Nxd4 {[%emt 0:00:01]} Nf6 {[%emt 0:00:01]} 5. Nc3 {[%emt 0:00:01]} Nc6 {[%emt 0:00:01]} 6. Bc4 {[%emt 0:00:06]} Qb6 {[%emt 0:00:01]} 7. Nxc6 {[%emt 0:00:02]} bxc6 {[%emt 0:00:02]} 8. O-O {[%emt 0:00:02]} g6 {[%emt 0:00:08]} 9. Qe1 {[%emt 0:00:02] B57: Classical Sicilian: Sozin with 6...Qb6.} Qc7 {[%emt 0:00:07] Nowadays more popular than 9...Qc5.} (9... Bg7 {with more complications.} 10. e5 dxe5 11. Qxe5 O-O) 10. Bf4 {[%emt 0:00:01] Strongly threatening e5.} Nd7 {[%emt 0:00:09] Inhibits e5.} 11. Rd1 {[%emt 0:00:02][%cal Oe4e5] The position is equal.} Bg7 {[%emt 0:01:01] Against e5} 12. Qd2 {[%emt 0:00:03]} Rb8 {[%emt 0:00:36]} 13. Bh6 {[%emt 0:01:16]} O-O {[%emt 0:01:09]} 14. Bxg7 {[%emt 0:01:54]} (14. Rfe1 {feels hotter.} Ne5 15. Bb3 Bg4 16. Ra1) 14... Kxg7 {[%emt 0:02:26]} 15. b3 {[%emt 0:00:04]} Nf6 {[%emt 0:08:16] [#]} 16. Rfe1 $146 {[%emt 0:00:53]} ({Predecessor:} 16. h3 Bb7 17. Qe3 Rfd8 18. Qxa7 Ra8 19. Qe3 d5 20. exd5 cxd5 21. Nb5 Qc6 22. Nd4 Qc7 23. Nb5 Qc6 24. Nd4 Qc7 25. Nb5 {½-½ (25) Mikhalchishin,A (2465)-Kozul,Z (2569) Mali Losinj 2019}) 16... Be6 {[%emt 0:04:30]} (16... Nd7 $14) 17. Bxe6 $16 {[%emt 0:05:17]} fxe6 {[%emt 0:00:04]} 18. e5 $1 {[%emt 0:00:02]} dxe5 {[%emt 0:00:12]} 19. Qe2 {[%emt 0:05:07]} Nd5 {[%emt 0:11:24]} 20. Ne4 {[%emt 0:02:36][%mdl 1024] White has strong compensation.} Nf4 {[%emt 0:01:44] Against c4} (20... Rbd8 $16 {might work better.}) 21. Qe3 $18 {[%emt 0:03:14] Black must now prevent Nc5.} Nd5 {[%emt 0:06:23]} 22. Qg3 {[%emt 0:01:24] Threatens to win with Ng5.} Kg8 {[%emt 0:05:42]} (22... Rf5 {was called for.} 23. Ng5 Kg8 24. Nxe6 Qd6) 23. c4 {[%emt 0:04:25]} Nf4 {[%emt 0:00:14]} 24. Qe3 {[%emt 0:00:41]} Qa5 {[%emt 0:01:14]} 25. g3 {[%emt 0:01:52]} Nh5 {[%emt 0:00:02][%cal Bf4h5,Bh5f6,Bf6e4,Be4d2][%mdl 32]} 26. Nc5 {[%emt 0:00:30]} Qxa2 {[%emt 0:01:46]} 27. Ra1 {[%emt 0:06:34][%mdl 64] Deflection} Qb2 {[%emt 0:00:12]} 28. Reb1 {[%emt 0:01:34]} (28. Qxe5 Qxf2+ 29. Kh1 Qf3+ 30. Kg1 Qf2+ 31. Kh1 Qf3+ 32. Kg1 Qf2+ $11) 28... Qc2 {[%emt 0:00:13] [#]} (28... Qd4 $16) 29. Nd7 $1 {[%emt 0:00:02]} (29. Qxe5 Qxf2+ 30. Kh1 Ng7 $11) (29. Nxe6 Rf6 30. Rc1 (30. Qxe5 Qxf2+ 31. Kh1 Qf3+ 32. Kg1 Qf2+ 33. Kh1 Qf3+ 34. Kg1 Qf2+ $11) (30. Qxa7 Re8 $15) 30... Qb2 $16) 29... Nf6 {[%emt 0:00:43]} 30. Nxf8 {[%emt 0:00:42]} (30. Nxb8 $2 Ng4 31. Qxa7 Rxf2 $19) 30... Rxf8 {[%emt 0:00:01]} 31. Qxe5 {[%emt 0:00:03]} Ne4 {[%emt 0:00:48]} 32. Rb2 {[%emt 0:00:33] Chess con chili.} (32. Qxe6+ $6 Rf7 33. Rf1 (33. Qxc6 Qxf2+ 34. Kh1 Qf3+ 35. Kg1 Qf2+ 36. Kh1 Qe2 $11) 33... Nd2 $18) 32... Qd3 {[%emt 0:00:02]} 33. Re1 {[%emt 0:00:29]} (33. Qxe6+ $18 Rf7 34. Qxc6 (34. Rxa7 Qd1+ 35. Kg2 Qf3+ 36. Kg1 Qd1+ 37. Kg2 Qf3+ 38. Kg1 Qd1+ $11)) 33... Nd2 $1 $14 {[%emt 0:00:06] aiming for ...Nf3+.} 34. Qxe6+ {[%emt 0:00:47]} (34. Rxd2 {simplifies} Qxd2 35. Qxe6+ Rf7 36. Qe3) 34... Rf7 {[%emt 0:00:01] [#]} 35. Rxd2 $1 {[%emt 0:05:20]} Qxd2 {[%emt 0:00:01][%mdl 4096] Endgame KQR-KQR} 36. Re2 {[%emt 0:00:01]} (36. Qe3 {simplifies} Qxe3 37. Rxe3 c5 38. Re5) 36... Qd3 {[%emt 0:00:47]} 37. b4 {[%emt 0:01:01]} (37. Qe3 {simplifies} Qxe3 38. Rxe3 c5 39. Re5) 37... Kg7 {[%emt 0:00:15]} 38. Qe5+ {[%emt 0:00:14]} Kg8 {[%emt 0:00:06]} 39. Qe6 {[%emt 0:00:21]} (39. Qe4 {simplifies} Qxe4 40. Rxe4 Kf8 41. Re3) 39... Kg7 {[%emt 0:00:01]} 40. c5 {[%emt 0:00:08]} ({White should try} 40. f4 $14) 40... h5 {[%emt 0:00:31]} (40... Qb1+ $11 {remains equal.} 41. Kg2 Qxb4) 41. h4 {[%emt 0:00:05]} (41. Qe5+ $16 Kg8 42. Qe4 Qxe4 43. Rxe4) 41... a6 {[%emt 0:00:16] [#]} (41... Qb1+ $1 $11 42. Re1 Qxb4) 42. Qe4 {[%emt 0:03:04]} (42. Qe5+ $142 $1 Kg8 43. Kg2) 42... Qd7 {[%emt 0:00:32]} (42... Qxe4 $16 43. Rxe4 Kf6) 43. Kg2 $36 {[%emt 0:00:05][%mdl 2048] White is on the roll.} Qd1 {[%emt 0:00:05]} 44. Ra2 {[%emt 0:00:33]} Qb3 $2 {[%emt 0:00:16]} (44... Qd7 $16 45. Re2 (45. Rxa6 Qd2 $16) 45... Qb7 46. Qd4+ Kh7) 45. Rxa6 {[%emt 0:00:20]} Qb2 {[%emt 0:00:00]} 46. Qe3 {[%emt 0:00:37]} (46. Qxc6 $2 {is the wrong capture.} Qxf2+ 47. Kh3 Qf1+ 48. Qg2 Qxa6 $19) (46. Rxc6 Rxf2+ 47. Kg1 Rf5 48. Qxe7+ Rf7 $17) 46... Qxb4 {[%emt 0:00:05]} 47. Rxc6 {[%emt 0:00:07]} (47. Qe5+ $142 Kh7 48. Qe6 (48. Rxc6 Qd2 $17)) 47... Qc4 $2 {[%emt 0:00:14]} (47... Qb7 48. Qe4 Rf6) 48. Re6 {[%emt 0:00:11]} (48. Qe5+ $142 Kh7 49. Rc8) 48... Qd5+ {[%emt 0:00:02]} 49. Kg1 {[%emt 0:00:13]} Qd1+ {[%emt 0:00:27]} 50. Qe1 $2 {[%emt 0:00:16]} (50. Kh2 $18 {is the precise move to win.} Qd5 51. Rxe7) 50... Qd5 $2 {[%emt 0:00:12] Loses the game.} (50... Qxe1+ $16 {was necessary.} 51. Rxe1 Kf6) 51. c6 {[%emt 0:00:07] Hoping for Qc3+.} ({Weaker is} 51. Rxe7 Qxc5 52. Qa1+ Kg8 53. Qa8+ Kg7 54. Qa1+ Kf8 $16) 51... Qc4 {[%emt 0:00:11] Prevents Qc3+.} (51... Qc5 $18 52. Qe2 Kh7) 52. Qe5+ {[%emt 0:00:13] White mates.} ({Not} 52. Rxe7 Qxc6 53. Qe5+ Kg8 54. Qb8+ Kg7 55. Qe5+ Kg8 $16) 52... Kh7 {[%emt 0:00:07]} 53. Rxe7 {[%emt 0:00:02]} Kg8 {[%emt 0:00:10]} 54. Re8+ {[%emt 0:00:10]} Rf8 {[%emt 0:00:02]} 55. Rxf8+ {[%emt 0:00:03]} Kxf8 {[%emt 0:00:00]} 56. Qf4+ {[%emt 0:00:09] Weighted Error Value: White=0.33/Black=0.45} 1-0

[Event "FIDE WTC-KO 202"]
[Site "Jerusalem"]
[Date "2022.11.23"]
[Round "2.1"]
[White "Vokhidov, Shamsiddin"]
[Black "Volokitin, Andrei"]
[Result "1-0"]
[ECO "B51"]
[WhiteElo "2471"]
[BlackElo "2659"]
[Annotator "TA"]
[PlyCount "69"]
[EventDate "2022.11.20"]
[EventType "team-tourn"]
[EventCountry "ISR"]
[SourceTitle "playchess.com"]
[Source "ChessBase"]
[SourceQuality "1"]
[TimeControl "2700+10"]

{[%evp 9,69,6,15,11,36,30,29,22,13,26,16,16,12,20,17,14,20,14,16,14,11,20,14,20,23,11,15,0,0,0,0,0,0,0,0,0,0,0,0,0,13,0,0,0,0,0,0,0,0,0,56,34,189,181,422,415,415,409,563,547,29995,29996]} 1. e4 {[%emt 0:00:01]} c5 {[%emt 0:00:03]} 2. Nf3 {[%emt 0:00:02]} d6 {[%emt 0:00:02]} 3. Bb5+ {[%emt 0:00:01]} Nd7 {[%emt 0:00:02]} 4. a4 {[%emt 0:00:01]} Ngf6 {[%emt 0:00:03]} 5. Nc3 {[%emt 0:00:01]} a6 {[%emt 0:00:07]} 6. Be2 {[%emt 0:00:02] B51: Sicilian: Moscow Variation (3 Bb5+) without 3...Bd7.} g6 {[%emt 0:00:06]} 7. O-O {[%emt 0:00:05]} Bg7 {[%emt 0:00:05]} 8. d4 {[%emt 0:00:23] White has an edge.} cxd4 {[%emt 0:00:41]} 9. Nxd4 {[%emt 0:00:02][%cal Bf3d4,Bd4c6,Bc6b4,Bb4d5][%mdl 32]} b6 {[%emt 0:00:20] [#]} 10. Nc6 $146 {[%emt 0:01:59]} ({Predecessor:} 10. f4 Bb7 11. Bf3 Qc7 12. Nde2 O-O 13. Be3 h5 14. Bd4 e5 15. Bf2 Nc5 16. fxe5 dxe5 {0-1 (39) Blatov,I (2323)-Kadatsky,A (2353) Samara 2007}) 10... Qc7 {[%emt 0:00:04]} 11. Nb4 {[%emt 0:00:01]} Bb7 {[%emt 0:07:43]} 12. Nbd5 {[%emt 0:03:12]} Qd8 {[%emt 0:01:20]} 13. Be3 {[%emt 0:03:18]} O-O {[%emt 0:02:22]} 14. Qd2 {[%emt 0:00:06]} e6 {[%emt 0:03:57]} 15. Nxf6+ {[%emt 0:00:08]} Nxf6 {[%emt 0:00:01]} 16. Bf3 {[%emt 0:03:12]} Qc7 {[%emt 0:00:19]} 17. Rfd1 {[%emt 0:00:03]} Rfd8 {[%emt 0:00:26]} 18. Bd4 {[%emt 0:02:54]} d5 {[%emt 0:10:42]} 19. exd5 {[%emt 0:08:01]} Nxd5 {[%emt 0:01:37]} 20. Bxd5 {[%emt 0:01:20] Strongly threatening Bxg7.} Bxd5 {[%emt 0:00:25]} 21. Qe3 {[%emt 0:00:31]} Bxd4 {[%emt 0:03:36]} 22. Rxd4 {[%emt 0:00:02]} Bb7 {[%emt 0:00:12]} 23. Rad1 {[%emt 0:00:02]} Rxd4 {[%emt 0:01:55]} 24. Qxd4 {[%emt 0:00:10]} Rc8 {[%emt 0:01:06]} 25. h4 {[%emt 0:02:30]} h5 {[%emt 0:00:27]} 26. Rd2 {[%emt 0:00:18]} b5 {[%emt 0:01:26]} 27. axb5 {[%emt 0:02:27]} axb5 {[%emt 0:00:02]} 28. f3 {[%emt 0:04:45]} e5 {[%emt 0:07:36]} 29. Qe3 {[%emt 0:01:59]} Ra8 {[%emt 0:00:51]} ({Better is} 29... b4 $11 30. Ne4 Bxe4 31. Qxe4 Qc5+ 32. Kh2 Qe7) 30. Nxb5 $14 {[%emt 0:04:41]} Ra1+ $2 {[%emt 0:00:05] Black cannot hold the game after this.} (30... Qe7 $1 $14 31. Nc3 e4) 31. Kh2 $18 {[%emt 0:00:46]} Qc4 {[%emt 0:01:00]} (31... Qe7 32. Qg5 Qxg5 33. hxg5 Kg7) 32. Rd8+ {[%emt 0:01:50]} (32. Qxe5 $2 Qxh4#) 32... Kh7 {[%emt 0:00:01][%cal Rc4h4] [#]} 33. Qg5 {[%emt 0:00:33]} Bxf3 {[%emt 0:00:11] [#]} (33... Qxb5 {leads to mate.} 34. Qf6) (33... Qe6 34. Nd6) 34. Nd4 $1 {[%emt 0:00:01][%cal Og5f6] Threatening mate with Qf6!} (34. Qxe5 $2 Qxh4#) (34. Qf6 {[#] gets mated.} Rh1+ $3 {[%mdl 512]} 35. Kg3 Qg4+ 36. Kf2 Qxg2+ 37. Ke3 Qe2#) 34... Be4 {[%emt 0:01:45] [#] ...Qf1 is the strong threat.} 35. Qf6 $1 {[%emt 0:00:31] Weighted Error Value: White=0.02 (flawless) /Black=0.55} 1-0

[Event "FIDE WTC-KO 202"]
[Site "Jerusalem"]
[Date "2022.11.23"]
[Round "2.1"]
[White "Li, Di"]
[Black "Gumularz, Szymon"]
[Result "1/2-1/2"]
[ECO "E11"]
[WhiteElo "2441"]
[BlackElo "2530"]
[Annotator "TA"]
[PlyCount "145"]
[EventDate "2022.11.20"]
[EventType "team-tourn"]
[EventCountry "ISR"]
[SourceTitle "playchess.com"]
[Source "ChessBase"]
[SourceQuality "1"]
[TimeControl "2700+10"]

{[%evp 20,145,16,12,0,0,14,12,3,0,15,0,0,0,0,0,0,0,0,0,18,18,22,22,27,25,44,45,70,77,71,35,36,22,31,0,11,0,0,0,0,0,25,0,0,0,0,0,0,0,0,0,0,0,0,0,0,0,0,0,0,0,0,0,0,0,0,0,0,0,0,0,0,0,0,0,19,26,21,0,0,0,0,0,0,0,0,-21,-8,-13,0,-17,-8,-8,0,0,0,0,0,0,0,0,0,0,0,0,0,0,0,0,0,0,0,0,0,0,0,0,0,0,0,0,0,0,0,0,0,0]} 1. d4 {[%emt 0:00:01]} e6 {[%emt 0:00:06]} 2. c4 {[%emt 0:00:08]} b6 {[%emt 0:00:01]} 3. Nf3 {[%emt 0:00:05]} Bb7 {[%emt 0:00:02]} 4. g3 {[%emt 0:00:01]} Bb4+ {[%emt 0:00:09]} 5. Bd2 {[%emt 0:00:11]} Be7 {[%emt 0:00:08]} 6. Bg2 {[%emt 0:00:01]} Nf6 {[%emt 0:00:02]} 7. O-O {[%emt 0:00:11]} O-O {[%emt 0:00:03]} 8. Nc3 {[%emt 0:00:29]} c6 {[%emt 0:00:03]} 9. Bg5 {[%emt 0:02:39]} d5 {[%emt 0:00:08]} 10. Qb3 {[%emt 0:00:25]} Nbd7 {[%emt 0:00:07]} 11. Rfd1 {[%emt 0:00:22]} Rc8 {[%emt 0:00:20] E11: Bogo-Indian.} 12. Rac1 {[%emt 0:00:07] [#]} Qe8 $146 {[%emt 0:03:36]} ({Predecessor:} 12... h6 13. Bxf6 Nxf6 14. Ne5 Nd7 15. Nxd7 Qxd7 16. e4 dxc4 17. Qxc4 c5 18. d5 Bf6 19. e5 Bxe5 20. dxe6 {1-0 (44) Krasenkow,M (2620)-Donchenko,A (2618) Porticcio 2019}) 13. cxd5 {[%emt 0:08:23]} cxd5 {[%emt 0:02:41]} 14. e3 {[%emt 0:02:42]} a6 {[%emt 0:01:53]} 15. a4 {[%emt 0:00:20]} h6 {[%emt 0:01:59]} 16. Bxf6 {[%emt 0:01:17]} Bxf6 {[%emt 0:00:03]} 17. Bf1 {[%emt 0:01:07]} Qd8 {[%emt 0:00:30]} 18. Bd3 {[%emt 0:01:45]} Be7 {[%emt 0:00:08]} 19. Qc2 {[%emt 0:00:28]} Bd6 {[%emt 0:01:56]} 20. Qe2 {[%emt 0:00:13]} a5 {[%emt 0:00:09]} 21. Ba6 {[%emt 0:00:28]} Bxa6 {[%emt 0:00:24]} 22. Qxa6 {[%emt 0:00:03]} Ra8 {[%emt 0:03:36]} 23. Qe2 {[%emt 0:00:06]} Nb8 {[%emt 0:03:21]} 24. Nb5 {[%emt 0:00:47]} Na6 {[%emt 0:00:03]} 25. Ne1 {[%emt 0:00:59] White is more active.} Qd7 {[%emt 0:00:17]} 26. h4 {[%emt 0:06:19]} Nb4 {[%emt 0:00:14]} 27. Nd3 {[%emt 0:00:20]} Rfc8 {[%emt 0:00:06]} 28. Nxb4 {[%emt 0:00:41]} Bxb4 {[%emt 0:00:11]} 29. h5 {[%emt 0:04:20]} Be7 {[%emt 0:01:37]} 30. Kg2 {[%emt 0:01:30]} Bf6 {[%emt 0:00:05]} 31. f4 {[%emt 0:00:19]} Be7 {[%emt 0:00:27]} 32. Qf1 {[%emt 0:01:27]} Bb4 {[%emt 0:00:17]} 33. Qd3 {[%emt 0:00:43]} Rab8 {[%emt 0:00:19]} 34. Qe2 {[%emt 0:00:19]} Rc6 {[%emt 0:02:07]} 35. Rxc6 {[%emt 0:02:05]} Qxc6 {[%emt 0:00:04]} 36. Kf2 {[%emt 0:00:07]} f5 {[%emt 0:01:09]} 37. Rg1 {[%emt 0:00:10]} Rf8 {[%emt 0:00:32]} 38. Rh1 {[%emt 0:02:07]} Kh7 {[%emt 0:00:08]} 39. Kf3 {[%emt 0:00:21]} Kg8 {[%emt 0:00:12]} 40. Kf2 {[%emt 0:01:40]} Kh7 {[%emt 0:00:19]} 41. Kf3 {[%emt 0:00:57]} Kg8 {[%emt 0:00:21]} 42. Rg1 {[%emt 0:00:41]} Kh8 {[%emt 0:00:38]} 43. Qd1 {[%emt 0:00:06]} Qc4 {[%emt 0:01:05]} 44. b3 {[%emt 0:00:03]} Qc6 {[%emt 0:00:01]} 45. Qc1 {[%emt 0:00:05]} Rc8 {[%emt 0:00:07]} 46. Qxc6 {[%emt 0:00:05]} Rxc6 $11 {[%emt 0:00:01][%mdl 4096] Endgame KRB-KRN} 47. g4 {[%emt 0:00:04]} fxg4+ {[%emt 0:01:33]} 48. Rxg4 {[%emt 0:00:02] [#] Hoping for Rg6.} Be7 $1 {[%emt 0:00:02]} 49. Rg2 {[%emt 0:02:14] The position is equal.} Kg8 {[%emt 0:00:15]} 50. e4 {[%emt 0:01:41]} dxe4+ {[%emt 0:00:06]} 51. Kxe4 {[%emt 0:00:02]} Rc1 {[%emt 0:00:02]} 52. Re2 {[%emt 0:01:33]} Kf7 {[%emt 0:00:09]} 53. Rh2 {[%emt 0:00:26]} Re1+ {[%emt 0:01:17]} 54. Kd3 {[%emt 0:00:03]} Rb1 {[%emt 0:00:08]} 55. Kc4 {[%emt 0:00:14]} Rf1 {[%emt 0:00:07]} 56. Na7 $1 {[%emt 0:00:13]} Rxf4 {[%emt 0:00:17]} 57. Nc6 {[%emt 0:00:04] Prevents e5.} Bf6 {[%emt 0:00:05]} 58. Kb5 $1 {[%emt 0:00:17]} Bxd4 {[%emt 0:00:14]} 59. Nxd4 {[%emt 0:00:08]} Rxd4 {[%emt 0:00:01]} 60. Kxb6 {[%emt 0:00:01] KR-KR} Rb4+ {[%emt 0:00:01]} 61. Kxa5 {[%emt 0:00:02]} Rxb3 {[%emt 0:00:01]} 62. Rf2+ {[%emt 0:00:16]} Ke7 {[%emt 0:00:01]} 63. Rg2 {[%emt 0:00:16]} Kf6 {[%emt 0:00:02]} 64. Rf2+ $1 {[%emt 0:00:06]} Kg5 {[%emt 0:00:51]} 65. Rg2+ {[%emt 0:00:01]} Kf6 {[%emt 0:01:32]} 66. Rf2+ {[%emt 0:00:01]} Ke7 {[%emt 0:00:26] aiming for ...e5.} 67. Rg2 {[%emt 0:00:01]} Kf7 {[%emt 0:00:01]} 68. Rf2+ {[%emt 0:00:01]} Ke7 {[%emt 0:01:08] White must now prevent ...e5.} 69. Rg2 {[%emt 0:00:03]} Kf6 {[%emt 0:10:05] [#] Threatens to win with ...e5.} 70. Rf2+ {[%emt 0:00:01]} Ke7 {[%emt 0:02:31] ...e5 is the strong threat.} 71. Rg2 {[%emt 0:00:01]} Kf7 {[%emt 0:01:06]} 72. Rf2+ {[%emt 0:00:01]} Ke7 {[%emt 0:00:34]} 73. Rg2 {[%emt 0:00:01] Weighted Error Value: White=0.04 (flawless) /Black=0.04 (flawless)} 1/2-1/2